bitfinex/quotes_SOLUSD_20251013
["timestamp","ask_amount","ask_price","bid_price","bid_amount"]
[1760339703983,0.66,198.67,198.63,9.43886788]
[1760339704280,0.09344044,198.7,198.66,9.43886788]
[1760339704477,0.09344044,198.7,198.69,9.43886788]
[1760339704664,0.09344044,198.7,198.64,0.7]
[1760339704862,0.09344044,198.7,198.69,9.43886788]
[1760339705061,0.09344044,198.7,198.69,10.13886788]
[1760339705463,0.09344044,198.7,198.69,6.32694539]
[1760339706372,1e-08,198.7,198.69,7.02694539]
[1760339706679,1e-08,198.7,198.65,54.36529977]
[1760339706880,1e-08,198.7,198.69,6.32694539]
[1760339707592,1e-08,198.7,198.69,7.02694539]
[1760339708185,1e-08,198.71,198.7,17.2034206]
[1760339708485,0.10984695,198.73,198.7,17.9034206]
[1760339708785,0.10984695,198.73,198.72,11.3591515]
[1760339709584,0.10984695,198.73,198.72,5.03220611]
[1760339709983,0.76984695,198.73,198.72,5.03220611]
[1760339710169,0.76984695,198.73,198.63,0.7]
[1760339710571,0.76984695,198.73,198.68,6.32694539]
[1760339710771,0.66,198.72,198.7,6.32694539]
[1760339711078,0.66,198.71,198.7,6.32694539]
[1760339711277,0.10984695,198.73,198.7,6.32694539]
[1760339711484,0.76984695,198.73,198.71,6.32694539]
[1760339711788,0.66,198.72,198.65,0.7]
[1760339711992,0.76756759,198.72,198.69,6.32694539]
[1760339712293,0.66,198.71,198.64,17.61981473]
[1760339712700,0.76756759,198.72,198.68,6.32694539]
[1760339712992,0.66,198.71,198.69,5.03296592]
[1760339715489,0.10756759,198.72,198.7,6.32694539]
[1760339715675,0.76756759,198.72,198.71,6.32694539]
[1760339715881,0.66,198.71,198.69,5.03296592]
[1760339716388,0.66,198.71,198.69,11.35991131]
[1760339717194,0.67,198.7,198.67,6.32694539]
[1760339717775,0.10756759,198.72,198.67,6.32694539]
[1760339717994,0.77756759,198.72,198.67,6.32694539]
[1760339718589,0.77756759,198.72,198.68,6.32694539]
[1760339718999,6.43451298,198.72,198.63,12.58579079]
[1760339719303,6.32694539,198.69,198.63,18.91273618]
[1760339719472,0.67,198.68,198.63,18.91273618]
[1760339719678,0.67,198.68,198.64,6.32694539]
[1760339720278,0.10756759,198.72,198.65,6.32694539]
[1760339720571,0.77756759,198.72,198.67,6.32694539]
[1760339721193,0.10756759,198.72,198.68,5.03321924]
[1760339721502,0.77756759,198.72,198.68,5.03321924]
[1760339721703,0.10756759,198.72,198.68,5.03321924]
[1760339721897,0.67,198.71,198.68,5.03321924]
[1760339722075,6.32694539,198.71,198.66,12.58404293]
[1760339722275,6.32694539,198.67,198.61,6.32694539]
[1760339722487,6.32694539,198.65,198.6,17.62336353]
[1760339722691,0.67,198.64,198.6,5.03524672]
[1760339722903,0.67,198.63,198.59,5.0354677]
[1760339723584,27.12694539,198.64,198.59,5.0354677]
[1760339723786,27.79694539,198.64,198.59,5.0354677]
[1760339724891,20.8,198.69,198.59,5.7054677]
[1760339725090,0.67,198.64,198.59,5.7054677]
[1760339725475,0.67,198.64,198.59,12.03241309]
[1760339725674,21.47,198.64,198.59,12.03241309]
[1760339725871,21.47,198.64,198.59,11.36241309]
[1760339726074,27.12694539,198.64,198.59,5.0354677]
[1760339726296,6.32694539,198.61,198.57,5.03579062]
[1760339726595,21.47,198.63,198.49,0.2]
[1760339726596,6.32694539,198.58,198.52,5.03727584]
[1760339726802,6.99694539,198.57,198.52,5.03727584]
[1760339727004,0.67,198.56,198.52,5.03727584]
[1760339727180,0.67,198.56,198.52,17.63046544]
[1760339727499,6.99694539,198.59,198.53,6.32694539]
[1760339728093,0.67,198.59,198.54,6.32694539]
[1760339728402,6.32694539,198.6,198.54,6.99694539]
[1760339729099,5.03397936,198.65,198.58,6.32694539]
[1760339729405,6.32694539,198.59,198.51,6.99694539]
[1760339729608,6.32694539,198.56,198.52,5.03727584]
[1760339729898,6.99694539,198.56,198.52,5.03727584]
[1760339730697,6.32694539,198.55,198.51,5.03752959]
[1760339730894,6.32694539,198.53,198.5,5.23776652]
[1760339731093,6.99694539,198.52,198.5,0.2]
[1760339731683,6.32694539,198.51,198.5,0.2]
[1760339731888,0.09860088,198.51,198.5,5.23778337]
[1760339732791,0.09860088,198.51,198.5,0.2]
[1760339733195,0.09860088,198.51,198.5,5.23778337]
[1760339733803,7.09554627,198.51,198.5,0.2]
[1760339734009,27.89554627,198.51,198.5,0.2]
[1760339735989,32.93307586,198.51,198.5,0.2]
[1760339736300,0.76860088,198.51,198.5,0.2]
[1760339736497,27.89554627,198.51,198.5,0.2]
[1760339737702,32.93307586,198.51,198.5,0.2]
[1760339739099,27.22554627,198.51,198.5,0.2]
[1760339739303,27.89554627,198.51,198.5,0.2]
[1760339739507,26.60613047,198.51,198.5,0.2]
[1760339739688,27.89554627,198.51,198.5,0.2]
[1760339740683,32.93307586,198.51,198.5,0.2]
[1760339741096,21.56860088,198.51,198.5,0.2]
[1760339741297,27.22554627,198.51,198.5,0.2]
[1760339741496,20.89860088,198.51,198.5,0.2]
[1760339741890,0.09860088,198.51,198.5,0.2]
[1760339742092,20.89860088,198.51,198.5,0.87]
[1760339742307,0.09860088,198.51,198.5,5.90778337]
[1760339742600,0.09860088,198.51,198.5,5.23778337]
[1760339743006,32.93307586,198.51,198.5,0.2]
[1760339746113,6.42554627,198.51,198.5,0.2]
[1760339746504,7.08554627,198.51,198.5,0.2]
[1760339746703,6.42554627,198.51,198.5,0.2]
[1760339748716,27.22554627,198.51,198.5,0.2]
[1760339749226,6.42554627,198.51,198.5,0.2]
[1760339749412,27.22554627,198.51,198.5,0.2]
[1760339749716,0.09860088,198.51,198.5,0.2]
[1760339750417,6.42554627,198.51,198.5,0.2]
[1760339752020,12.18161869,198.51,198.5,0.2]
[1760339754425,18.50856408,198.51,198.49,0.2]
[1760339754622,33.45389078,198.5,198.49,0.2]
[1760339754835,34.16389078,198.5,198.39,0.65]
[1760339755002,34.16389078,198.5,198.37,0.65]
[1760339755003,2.634,198.39,198.37,0.65]
[1760339755517,2.634,198.39,198.38,0.65]
[1760339755728,2.634,198.39,198.38,6.97694539]
[1760339755910,1.394,198.39,198.38,6.97694539]
[1760339756104,1.394,198.39,198.36,10.87647521]
[1760339756305,1.394,198.39,198.38,6.32694539]
[1760339756604,1.394,198.39,198.38,11.36777611]
[1760339758542,6.32694539,198.49,198.38,53.72353639]
[1760339758827,27.12694539,198.49,198.38,34.84632814]
[1760339759323,6.32694539,198.49,198.43,6.32694539]
[1760339759825,6.32694539,198.49,198.44,5.03930659]
[1760339760033,7.03694539,198.49,198.44,5.03930659]
[1760339760211,0.10714371,198.51,198.47,6.32694539]
[1760339760523,0.10714371,198.51,198.49,6.32694539]
[1760339760727,0.10714371,198.51,198.5,6.32694539]
[1760339761222,0.10714371,198.51,198.45,10.87647521]
[1760339761421,0.10714371,198.51,198.5,6.32694539]
[1760339761800,0.10714371,198.51,198.45,10.87647521]
[1760339762004,0.10714371,198.51,198.49,6.32694539]
[1760339762338,0.10714371,198.51,198.5,6.32694539]
[1760339763529,0.10714371,198.51,198.47,10.87647521]
[1760339763729,0.09184953,198.53,198.5,17.2034206]
[1760339763910,1e-08,198.55,198.53,10.87647521]
[1760339764112,0.09152833,198.59,198.55,10.87647521]
[1760339764421,1e-08,198.57,198.56,6.32694539]
[1760339764621,1e-08,198.57,198.56,17.2034206]
[1760339764823,1e-08,198.58,198.56,17.2034206]
[1760339765036,1e-08,198.58,198.57,6.32694539]
[1760339765419,1e-08,198.58,198.57,17.2034206]
[1760339765615,0.71,198.68,198.58,10.87647521]
[1760339765810,0.71,198.68,198.65,11.3608786]
[1760339766010,0.71,198.68,198.65,5.03393321]
[1760339766519,6.32694539,198.66,198.58,12.58914646]
[1760339766818,6.32694539,198.67,198.61,6.32694539]
[1760339767016,7.03694539,198.68,198.62,6.32694539]
[1760339767326,7.03694539,198.68,198.62,9.43521815]
[1760339767525,10.14521815,198.68,198.62,9.43521815]
[1760339767927,0.71,198.68,198.63,14.46970438]
[1760339768122,0.71,198.67,198.63,14.46970438]
[1760339769246,0.71,198.67,198.62,9.43521815]
[1760339769423,0.71,198.66,198.62,9.43521815]
[1760339769932,0.71,198.66,198.61,9.43521815]
[1760339770333,20.8,198.7,198.64,9.43521815]
[1760339770519,10.14521815,198.72,198.58,10.87647521]
[1760339770851,0.71,198.71,198.65,9.43521815]
[1760339771339,0.71,198.71,198.66,5.03372596]
[1760339771815,10.14521815,198.71,198.66,5.03372596]
[1760339772016,0.10978818,198.67,198.66,5.03372596]
[1760339772519,0.10978818,198.67,198.61,10.87647521]
[1760339772733,0.10978818,198.67,198.44,37.78156814]
[1760339772734,0.10978818,198.67,198.62,9.43521815]
[1760339772924,0.10978818,198.67,198.58,10.87647521]
[1760339773238,0.10978818,198.67,198.63,9.43521815]
[1760339773410,0.10978818,198.67,198.65,9.43521815]
[1760339774341,0.10978818,198.67,198.64,27.05503288]
[1760339774540,0.10978818,198.67,198.64,14.46945093]
[1760339775038,10.14521815,198.66,198.64,5.03423278]
[1760339775220,10.14521815,198.65,198.62,5.03451486]
[1760339775425,10.14521815,198.65,198.61,12.58712945]
[1760339775620,0.10978818,198.67,198.64,9.43521815]
[1760339775819,0.10978818,198.67,198.66,9.43521815]
[1760339776038,0.10978818,198.67,198.64,9.43521815]
[1760339776235,0.10978818,198.67,198.63,9.43521815]
[1760339776533,0.10978818,198.67,198.64,9.43521815]
[1760339776745,0.10978818,198.67,198.66,9.43521815]
[1760339777519,0.10978818,198.67,198.66,14.46894411]
[1760339778215,0.10978818,198.67,198.61,17.62202837]
[1760339778216,10.22500633,198.67,198.61,17.62202837]
[1760339778442,9.43521815,198.66,198.61,17.62202837]
[1760339778846,10.22500633,198.67,198.61,27.05724652]
[1760339779335,10.22500633,198.67,198.61,12.58703517]
[1760339780331,10.22500633,198.67,198.61,22.02225332]
[1760339780523,9.43521815,198.66,198.61,17.62202837]
[1760339780728,9.43521815,198.65,198.61,17.62202837]
[1760339781240,0.68,198.66,198.61,17.62202837]
[1760339781447,9.54500633,198.67,198.61,17.62202837]
[1760339781845,9.43521815,198.62,198.58,12.58903786]
[1760339782047,0.68,198.61,198.58,12.58903786]
[1760339782236,25.94327206,198.67,198.55,12.59103871]
[1760339782237,9.43521815,198.59,198.55,12.59103871]
[1760339782436,10.11521815,198.58,198.52,17.63025028]
[1760339782632,10.11521815,198.58,198.52,27.06546843]
[1760339782844,0.68,198.58,198.52,27.06546843]
[1760339783023,20.8,198.63,198.53,9.43521815]
[1760339783024,0.68,198.61,198.53,9.43521815]
[1760339783227,9.43521815,198.59,198.53,9.43521815]
[1760339783627,0.68,198.65,198.58,9.43521815]
[1760339783942,10.11521815,198.65,198.59,9.43521815]
[1760339784548,10.11521815,198.65,198.6,5.03524672]
[1760339784730,0.10978818,198.67,198.6,27.05858168]
[1760339784929,0.10978818,198.67,198.62,9.43521815]
[1760339785447,0.78978818,198.67,198.62,9.43521815]
[1760339786151,0.78978818,198.67,198.63,5.03448623]
[1760339786534,0.78978818,198.67,198.58,9.43521815]
[1760339786535,9.43521815,198.65,198.58,9.43521815]
[1760339786849,9.43521815,198.64,198.58,9.43521815]
[1760339787448,9.43521815,198.64,198.59,17.62379559]
[1760339787629,10.11521815,198.64,198.59,17.62379559]
[1760339787825,21.58978818,198.67,198.6,9.43521815]
[1760339788029,9.43521815,198.65,198.59,27.05901374]
[1760339788244,9.43521815,198.64,198.59,17.62379559]
[1760339788451,0.78978818,198.67,198.59,27.05901374]
[1760339788749,10.11521815,198.66,198.59,27.05901374]
[1760339790137,0.10978818,198.67,198.59,17.62379559]
[1760339790331,0.10978818,198.67,198.62,9.43521815]
[1760339791354,0.10978818,198.67,198.63,5.03448623]
[1760339791652,0.10978818,198.67,198.64,9.43521815]
[1760339792158,9.43521815,198.63,198.57,20.31169336]
[1760339792931,9.43521815,198.61,198.57,10.87647521]
[1760339793131,9.43521815,198.62,198.56,17.62691376]
[1760339793453,9.43521815,198.62,198.56,27.06213191]
[1760339793658,10.11521815,198.63,198.56,27.06213191]
[1760339794454,9.43521815,198.6,198.56,17.62691376]
[1760339794760,9.43521815,198.57,198.54,5.03653299]
[1760339794942,9.43521815,198.56,198.54,5.03653299]
[1760339795151,9.43521815,198.57,198.54,5.03653299]
[1760339795454,9.43521815,198.58,198.54,5.03653299]
[1760339795851,10.11521815,198.58,198.53,12.59205744]
[1760339796248,9.43521815,198.57,198.53,12.59205744]
[1760339796954,10.11521815,198.57,198.53,12.59205744]
[1760339797258,0.68,198.57,198.53,12.59205744]
[1760339797766,9.43521815,198.6,198.54,9.43521815]
[1760339798061,0.68,198.57,198.53,12.59205744]
[1760339798557,9.43521815,198.58,198.53,12.59205744]
[1760339798754,0.68,198.57,198.53,12.59205744]
[1760339799061,0.68,198.56,198.53,5.03702211]
[1760339799283,0.68,198.55,198.53,5.03702211]
[1760339799760,9.43521815,198.56,198.53,5.03702211]
[1760339799961,0.68,198.56,198.53,5.03702211]
[1760339800159,0.68,198.56,198.51,17.63135357]
[1760339800557,0.68,198.55,198.51,17.63135357]
[1760339800855,0.68,198.54,198.51,5.03752959]
[1760339801172,9.43521815,198.55,198.51,5.03752959]
[1760339801381,10.11521815,198.55,198.51,17.63135357]
[1760339801561,0.68,198.55,198.51,17.63135357]
[1760339802746,0.68,198.54,198.51,17.63135357]
[1760339803250,20.09647709,198.64,198.49,5.03787014]
[1760339803251,9.43521815,198.52,198.49,5.03787014]
[1760339803449,9.43521815,198.5,198.46,5.03879875]
[1760339803665,9.43521815,198.48,198.46,5.03879875]
[1760339803950,0.68,198.52,198.47,9.43521815]
[1760339804151,0.68,198.51,198.47,9.43521815]
[1760339804363,0.68,198.54,198.49,9.43521815]
[1760339804577,21.48,198.57,198.51,9.43521815]
[1760339804885,10.11521815,198.6,198.54,9.43521815]
[1760339805057,10.11521815,198.6,198.49,10.87647521]
[1760339805252,0.68,198.63,198.59,9.43521815]
[1760339806177,0.68,198.63,198.6,9.43521815]
[1760339806474,9.43521815,198.61,198.42,5.03981453]
[1760339806789,9.43521815,198.58,198.51,9.43521815]
[1760339807576,21.52,198.6,198.52,5.03727584]
[1760339807763,9.43521815,198.58,198.52,5.03727584]
[1760339807956,9.43521815,198.58,198.52,17.63046544]
[1760339808372,9.43521815,198.57,198.52,17.63046544]
[1760339808569,20.8,198.6,198.52,17.63046544]
[1760339808570,10.15521815,198.56,198.52,17.63046544]
[1760339808957,9.43521815,198.57,198.52,17.63046544]
[1760339809267,0.72,198.57,198.52,17.63046544]
[1760339810356,10.15521815,198.57,198.52,17.63046544]
[1760339810674,0.72,198.56,198.52,12.5931896]
[1760339810873,9.43521815,198.57,198.52,12.5931896]
[1760339811173,10.15521815,198.59,198.52,22.02840775]
[1760339811353,30.23521815,198.61,198.54,9.43521815]
[1760339811548,0.72,198.62,198.55,9.43521815]
[1760339811754,9.43521815,198.59,198.53,10.87647521]
[1760339811954,0.09539239,198.56,198.54,9.43521815]
[1760339812154,0.09539239,198.56,198.55,9.43521815]
[1760339812350,0.09539239,198.56,198.52,12.5931896]
[1760339812571,0.81539239,198.56,198.52,12.5931896]
[1760339812768,0.09539239,198.56,198.52,12.5931896]
[1760339813175,0.72,198.55,198.52,12.5931896]
[1760339813765,2.63249167,198.54,198.53,9.43521815]
[1760339814568,2.63249167,198.54,198.53,14.47224026]
[1760339815681,2.63249167,198.54,198.53,5.03702211]
[1760339816161,2.63249167,198.54,198.53,14.47224026]
[1760339817559,2.63249167,198.54,198.53,5.03702211]
[1760339817781,3.35249167,198.54,198.53,5.03702211]
[1760339818682,3.35249167,198.54,198.52,12.5931896]
[1760339818857,0.72,198.53,198.52,12.5931896]
[1760339819877,2.63249167,198.54,198.52,12.5931896]
[1760339820084,3.35249167,198.54,198.52,12.5931896]
[1760339820274,0.72,198.53,198.52,12.5931896]
[1760339821682,0.72,198.53,198.51,5.03752959]
[1760339821988,0.72,198.52,198.51,5.03752959]
[1760339822373,2.63249167,198.54,198.51,27.06657172]
[1760339822575,2.63249167,198.54,198.53,9.43521815]
[1760339823572,2.63249167,198.54,198.53,20.31169336]
[1760339823780,0.09539239,198.56,198.55,5.03651473]
[1760339824082,0.09539239,198.56,198.55,14.47173288]
[1760339824674,0.81539239,198.56,198.55,5.03651473]
[1760339825186,10.25061054,198.56,198.52,5.03727584]
[1760339825486,9.43521815,198.54,198.52,5.03727584]
[1760339825664,0.72,198.53,198.52,5.03727584]
[1760339825864,10.15521815,198.53,198.51,5.03752959]
[1760339826061,10.15521815,198.52,198.47,12.59581381]
[1760339826283,0.72,198.51,198.47,12.59581381]
[1760339826464,0.72,198.5,198.47,12.59581381]
[1760339827467,10.15521815,198.52,198.47,12.59581381]
[1760339827794,0.72,198.49,198.47,12.59581381]
[1760339828196,10.15521815,198.51,198.47,12.59581381]
[1760339828586,9.43521815,198.51,198.47,12.59581381]
[1760339828770,0.72,198.5,198.47,12.59581381]
[1760339829263,21.52,198.52,198.47,22.03103196]
[1760339829487,0.72,198.51,198.47,18.93929547]
[1760339829999,0.72,198.51,198.47,12.59581381]
[1760339830178,0.72,198.5,198.47,17.63435867]
[1760339830492,0.72,198.49,198.47,17.63435867]
[1760339831067,6.34348166,198.51,198.47,17.63435867]
[1760339831278,0.72,198.5,198.47,12.59581381]
[1760339831475,0.72,198.5,198.46,5.03879875]
[1760339831699,6.34348166,198.48,198.46,5.03879875]
[1760339831908,7.16410427,198.47,198.43,80.4]
[1760339832077,7.16410427,198.47,198.35,159.30745239]
[1760339832078,6.34348166,198.44,198.37,5.04108484]
[1760339832276,21.52,198.46,198.37,5.04108484]
[1760339832277,6.34348166,198.42,198.37,5.04108484]
[1760339832479,0.72,198.41,198.37,15.91756005]
[1760339832681,0.72,198.4,198.37,15.91756005]
[1760339832883,0.72,198.39,198.37,5.04108484]
[1760339833285,0.72,198.38,198.35,12.60346225]
[1760339833468,0.72,198.38,198.33,11.3855832]
[1760339833469,6.34348166,198.4,198.34,6.34348166]
[1760339833677,5.03957683,198.43,198.37,6.34348166]
[1760339833678,6.34348166,198.43,198.37,6.34348166]
[1760339834076,20.8,198.45,198.4,6.34348166]
[1760339834077,0.72,198.45,198.4,6.34348166]
[1760339834285,0.72,198.44,198.4,6.34348166]
[1760339834993,0.72,198.44,198.34,10.87647521]
[1760339835171,0.72,198.44,198.4,6.34348166]
[1760339835581,0.10062261,198.47,198.43,6.34348166]
[1760339835896,0.10062261,198.47,198.42,6.34348166]
[1760339836301,0.72,198.46,198.41,23.98372156]
[1760339836490,7.06348166,198.45,198.41,5.04006854]
[1760339836817,7.03348166,198.44,198.41,5.04006854]
[1760339836984,6.34348166,198.43,198.41,5.04006854]
[1760339837186,0.69,198.42,198.41,5.04006854]
[1760339837798,7.03348166,198.44,198.39,23.9854999]
[1760339838100,0.69,198.43,198.39,23.9854999]
[1760339838312,7.03348166,198.43,198.39,5.04057664]
[1760339838605,0.69,198.42,198.39,5.04057664]
[1760339838771,0.69,198.41,198.39,5.04057664]
[1760339839282,0.69,198.41,198.38,5.04083072]
[1760339840005,7.03348166,198.43,198.38,17.64290754]
[1760339840204,0.69,198.42,198.38,17.64290754]
[1760339840634,27.83348166,198.44,198.38,23.9863892]
[1760339841082,6.34348166,198.43,198.38,17.64290754]
[1760339841288,0.69,198.42,198.38,17.64290754]
[1760339841888,0.69,198.41,198.38,17.64290754]
[1760339843317,0.69,198.44,198.39,6.34348166]
[1760339843492,0.69,198.43,198.39,6.34348166]
[1760339844007,0.69,198.42,198.39,6.34348166]
[1760339844417,0.69,198.42,198.38,17.64290754]
[1760339844613,0.69,198.42,198.38,23.9863892]
[1760339844818,0.69,198.42,198.38,17.64290754]
[1760339845117,0.69,198.41,198.38,17.64290754]
[1760339845706,0.69,198.43,198.38,2.54002833]
[1760339845885,0.69,198.42,198.38,2.54002833]
[1760339846089,2.54002833,198.39,198.35,5.04159314]
[1760339846291,0.69,198.38,198.35,5.04159314]
[1760339846904,0.69,198.37,198.35,5.04159314]
[1760339847412,0.69,198.42,198.36,6.34969129]
[1760339847592,20.8,198.41,198.37,6.34969129]
[1760339847800,0.69,198.4,198.32,10.87647521]
[1760339847998,0.69,198.4,198.35,6.34969129]
[1760339848392,0.69,198.39,198.36,6.34969129]
[1760339848594,0.69,198.39,198.35,6.34969129]
[1760339848896,0.10062261,198.47,198.39,10.87647521]
[1760339849090,0.10062261,198.47,198.46,6.34969129]
[1760339849291,0.10062261,198.47,198.46,17.2261665]
[1760339849523,1e-08,198.47,198.46,17.2261665]
[1760339849822,1e-08,198.47,198.46,22.26496525]
[1760339851510,7.0396913,198.47,198.41,23.98965819]
[1760339851896,0.10044908,198.43,198.41,17.6399669]
[1760339852513,0.10044908,198.43,198.42,6.34969129]
[1760339853405,0.10044908,198.43,198.42,5.03981453]
[1760339853905,0.10044908,198.43,198.42,11.38950582]
[1760339855416,7.14014037,198.43,198.35,6.34969129]
[1760339855621,6.34969129,198.4,198.34,6.34969129]
[1760339855819,7.03969129,198.4,198.35,10.87647521]
[1760339855998,0.69,198.39,198.35,10.87647521]
[1760339856201,6.34969129,198.36,198.3,5.04286434]
[1760339856419,6.34969129,198.33,198.3,5.04286434]
[1760339856719,7.03969129,198.33,198.3,5.04286434]
[1760339857025,6.34969129,198.33,198.29,0.2]
[1760339857225,0.69,198.35,198.3,6.34969129]
[1760339857516,6.34969129,198.37,198.31,5.04261005]
[1760339857722,6.34969129,198.36,198.31,5.04261005]
[1760339857915,7.03969129,198.35,198.31,17.64913518]
[1760339858110,7.03969129,198.34,198.31,17.64913518]
[1760339858313,0.69,198.34,198.31,17.64913518]
[1760339858519,6.34969129,198.32,198.31,5.04261005]
[1760339858722,7.03969129,198.32,198.31,5.04261005]
[1760339858924,7.03969129,198.35,198.31,5.04261005]
[1760339859100,0.69,198.34,198.31,5.04261005]
[1760339859627,0.69,198.34,198.3,17.64974714]
[1760339860322,6.34969129,198.32,198.3,5.04286434]
[1760339860621,7.03969129,198.31,198.3,5.04286434]
[1760339861023,7.03969129,198.31,198.29,0.2]
[1760339861322,7.03969129,198.3,198.29,5.24311866]
[1760339861907,6.34969129,198.31,198.29,5.24311866]
[1760339862512,7.03969129,198.3,198.29,5.24311866]
[1760339863218,7.03969129,198.3,198.19,0.2]
[1760339863219,19.64685215,198.3,198.19,0.2]
[1760339863421,0.69,198.29,198.19,11.59533938]
[1760339863604,6.34969129,198.28,198.21,6.34969129]
[1760339863806,20.8,198.29,198.22,0.7]
[1760339864004,20.8,198.27,198.23,6.34969129]
[1760339864214,20.8,198.27,198.23,0.7]
[1760339864413,0.69,198.32,198.19,17.85980622]
[1760339864414,0.69,198.32,198.26,10.87647521]
[1760339864600,7.03969129,198.32,198.26,10.87647521]
[1760339864803,6.34969129,198.29,198.24,0.7]
[1760339865004,6.34969129,198.29,198.26,10.87647521]
[1760339865222,6.34969129,198.29,198.27,5.04362737]
[1760339866209,0.69,198.32,198.27,5.04362737]
[1760339866416,6.34969129,198.3,198.27,17.65269581]
[1760339868026,0.72,198.35,198.28,11.59647521]
[1760339868328,6.34969129,198.33,198.28,11.59647521]
[1760339868502,6.34969129,198.33,198.29,5.04311866]
[1760339868704,6.34969129,198.31,198.29,5.04311866]
[1760339870141,0.72,198.42,198.3,11.59647521]
[1760339870342,6.34969129,198.38,198.31,0.72]
[1760339871140,6.34969129,198.4,198.35,10.87647521]
[1760339871320,7.06969129,198.42,198.36,0.72]
[1760339871636,27.86969129,198.42,198.36,10.87647521]
[1760339871932,0.09423487,198.38,198.37,5.04108484]
[1760339873739,0.81423487,198.38,198.37,5.04108484]
[1760339875720,7.16392616,198.38,198.34,10.87647521]
[1760339876828,7.16392616,198.38,198.35,5.04159314]
[1760339877025,0.81423487,198.38,198.35,5.04159314]
[1760339877512,0.81423487,198.38,198.35,17.64557599]
[1760339877513,0.09423487,198.38,198.35,17.64557599]
[1760339877714,0.09423487,198.38,198.36,6.34969129]
[1760339877921,0.09423487,198.38,198.36,17.2261665]
[1760339878653,0.09423487,198.38,198.37,7.06969129]
[1760339878940,0.09423487,198.38,198.37,12.11077613]
[1760339879241,0.09423487,198.38,198.37,5.04108484]
[1760339879443,0.09423487,198.38,198.37,22.26725134]
[1760339879622,0.09423487,198.38,198.37,22.98725134]
[1760339879942,0.09423487,198.38,198.37,22.26725134]
[1760339880117,0.09423487,198.38,198.37,15.91756005]
[1760339880318,0.09423487,198.38,198.32,12.60554365]
[1760339880319,7.16392616,198.38,198.32,12.60554365]
[1760339880511,6.34969129,198.36,198.32,12.60554365]
[1760339880731,7.06969129,198.35,198.32,12.60554365]
[1760339881110,0.09423487,198.38,198.31,5.04261005]
[1760339881111,7.06969129,198.34,198.31,5.04261005]
[1760339882539,0.72,198.33,198.31,5.04261005]
[1760339882739,6.34969129,198.34,198.31,5.04261005]
[1760339882910,27.14969129,198.35,198.29,17.65054837]
[1760339883114,7.06969129,198.34,198.29,17.65054837]
[1760339883733,7.06969129,198.33,198.29,17.65054837]
[1760339883936,6.34969129,198.33,198.29,17.65054837]
[1760339884136,6.34969129,198.34,198.29,17.65054837]
[1760339884521,2.63554349,198.33,198.29,17.65054837]
[1760339885028,0.72,198.32,198.29,12.60742971]
[1760339885227,0.72,198.32,198.29,93.00742971]
[1760339885811,7.06969129,198.31,198.28,5.043373]
[1760339886012,3.35554349,198.33,198.28,5.043373]
[1760339886212,0.72,198.32,198.28,5.043373]
[1760339886434,2.63554349,198.33,198.29,10.87647521]
[1760339887119,2.63554349,198.33,198.3,18.3700252]
[1760339887520,2.63554349,198.33,198.3,17.6500252]
[1760339888846,8.98523478,198.33,198.3,5.04286434]
[1760339889141,27.14969129,198.31,198.24,12.61046456]
[1760339889317,2.63554349,198.33,198.26,10.87647521]
[1760339889639,2.63554349,198.33,198.3,6.34969129]
[1760339890021,2.63554349,198.33,198.32,6.34969129]
[1760339890629,20.8,198.36,198.33,5.04210154]
[1760339890831,0.72,198.35,198.33,5.04210154]
[1760339891240,3.35538511,198.35,198.33,5.04210154]
[1760339891614,10.18499394,198.34,198.3,5.04286434]
[1760339891927,0.09448476,198.31,198.3,25.38433349]
[1760339892519,0.09448476,198.31,198.3,15.91933955]
[1760339892837,0.09874199,198.32,198.31,15.91908526]
[1760339893142,0.09874199,198.32,198.31,26.1040792]
[1760339894140,0.09874199,198.32,198.31,106.5040792]
[1760339894655,0.10470581,198.33,198.31,97.03908526]
[1760339894819,0.09284195,198.34,198.32,10.18499394]
[1760339895017,0.10593099,198.35,198.33,20.34146915]
[1760339895221,0.10593099,198.35,198.34,9.46499394]
[1760339896138,0.09274755,198.38,198.35,10.87647521]
[1760339896324,0.09274755,198.38,198.36,9.46499394]
[1760339896527,0.09274755,198.38,198.36,10.18499394]
[1760339896724,0.09274755,198.38,198.36,5.04133897]
[1760339896926,0.76324897,198.37,198.36,5.04133897]
[1760339897838,0.09324897,198.37,198.36,5.04133897]
[1760339898218,10.22824291,198.37,198.36,5.04133897]
[1760339898838,10.22824291,198.37,198.34,17.64617772]
[1760339899037,0.67,198.36,198.34,17.64617772]